Cogmind - Beta 17.1 @@@ ROGUE MODE // 2026.08.23 @ 18:04:10 Player: JuustuToug Result: Destroyed by 3F-SAF(Y) with Heavy Autocannon Performance ------------- Evolutions (5) 2500 Regions Visited (16) 3200 Robots Destroyed (245) 1225 Value Destroyed (11125) 11125 Prototype IDs (21) 420 Alien Tech Used (1) 200 Bonus (5235) 5235 TOTAL SCORE: 23905 Bonus ------- High Alert Combat Kills 2287 Follower Combat Kills 869 Entered Garrisons 400 Entered DSFs 500 Acquired ECA 300 Met Warlord at Base 500 MAIN.C Attacked Warlord 500 Friendly Fire -121 Cogmind --------- Core Integrity 0/1000 Matter 300/300 Energy 99/100 System Corruption 11% Temperature Cool (0) Movement Core (50) Location -5/Warlord Parts ------- > --- POWER (2) -------- (None) > --- PROPULSION (6) --- (None) > --- UTILITY (8) ------ Experimental Coolant Injector Improved Signal Interpreter Advanced Terrain Scan Processor Hacking Suite > --- WEAPON (2) ------- (None) > --- INVENTORY (5) ---- Energy Well (34) Mapping Drone Bay (3/3) Enhanced Nova Cannon Hypervelocity Coil Gun Heavy Shock Bomb Launcher Peak State ------------ > --- POWER ------------ Vortex Chain Reactor > --- PROPULSION ------- Improved Heavy Treads Improved Heavy Treads Biometal Heavy Treads > --- UTILITY ---------- Advanced Heat Sink Experimental Coolant Injector Huge Storage Unit Improved Signal Interpreter Advanced Terrain Scan Processor Makeshift Heavy Armor Plating Centrium Medium Armor Plating > --- WEAPON ----------- Enhanced Nova Cannon Enhanced Nova Cannon > --- INVENTORY -------- Reinforced Fission Core Improved Medium Treads Energy Well Advanced Sensor Array Advanced Terrain Scanner Seismic Detector Makeshift Transmission Jammer Experimental Cloaking Device Advanced Remote Shield Hacking Suite Hacking Suite Mapping Drone Bay Heavy Plasma Cannon Heavy Phase Cannon Enhanced Nova Cannon Hypervelocity Coil Gun Heavy Shock Bomb Launcher Heavy Shock Bomb Launcher Vortex Lance [Rating: 138] Favorites ----------- Power Heavy Ion Engine Engine Heavy Ion Engine Power Core Fission Core Reactor Vortex Chain Reactor Propulsion Light Treads Treads Light Treads Leg Aluminum Leg Utility Huge Storage Unit Device Seismic Detector Storage Huge Storage Unit Processor Advanced Terrain Scan Processor Hackware Hacking Suite Protection Heavy Armor Plating Weapon Heavy Plasma Cannon Energy Gun Beam Rifle Energy Cannon Heavy Plasma Cannon Ballistic Gun Heavy Assault Rifle Ballistic Cannon Antimatter Cannon Launcher Rocket Launcher Piercing Weapon Vortex Lance Build | -11 -10 -10 -9 -9 -8 -8 -8 -8 -6 -6 -5 -5 -5 -5 -5 -5 ------- Run | Yrd Mat Min Mat Min Mat Sto Gar Rec Fac DSF Fac Gar Fac Upp Upp War Slots Evolved 10 | . . . 2 . 2 . . . 4 . 2 . . . . . Power 1 | . . . . . . . . . 1 . . . . . . . Propulsion 4 | . . . 1 . 1 . . . 1 . 1 . . . . . Utility 5 | . . . 1 . 1 . . . 2 . 1 . . . . . Weapon . | . . . . . . . . . . . . . . . . . Parts Attached 149 | 7 11 10 16 2 5 2 21 . 8 9 5 24 7 5 3 14 Power 20 | 1 2 3 2 . . . 3 . 2 2 . 2 1 . 1 1 Engine 11 | 1 1 2 2 . . . 3 . 1 . . 1 . . . . Core 8 | . 1 1 . . . . . . 1 2 . 1 1 . 1 . Reactor 1 | . . . . . . . . . . . . . . . . 1 Propulsion 44 | 2 1 2 5 2 2 . 11 . 2 4 1 7 1 1 . 3 Treads 42 | 2 1 2 3 2 2 . 11 . 2 4 1 7 1 1 . 3 Leg 2 | . . . 2 . . . . . . . . . . . . . Wheel . | . . . . . . . . . . . . . . . . . Hover . | . . . . . . . . . . . . . . . . . Flight . | . . . . . . . . . . . . . . . . . Utility 58 | 2 4 2 5 . 3 . 6 . 3 3 4 11 5 2 1 7 Device 29 | 1 2 1 . . 3 . 2 . 1 1 2 7 3 2 . 4 Storage 6 | 1 1 . 2 . . . . . . . . 1 1 . . . Processor 3 | . . . . . . . . . 1 1 1 . . . . . Hackware 2 | . . . . . . . . . 1 . . . . . . 1 Protection 18 | . 1 1 3 . . . 4 . . 1 1 3 1 . 1 2 Artifact . | . . . . . . . . . . . . . . . . . Weapon 27 | 2 4 3 4 . . 2 1 . 1 . . 4 . 2 1 3 Energy Gun 5 | 2 2 . . . . . . . . . . . . . . 1 Energy Cannon 13 | . 1 . 4 . . 1 1 . . . . 3 . 2 . 1 Ballistic Gun 4 | . 1 2 . . . 1 . . . . . . . . . . Ballistic Cannon 1 | . . . . . . . . . 1 . . . . . . . Launcher 3 | . . 1 . . . . . . . . . 1 . . 1 . Special Weapon . | . . . . . . . . . . . . . . . . . Impact Weapon . | . . . . . . . . . . . . . . . . . Slashing Weapon . | . . . . . . . . . . . . . . . . . Piercing Weapon 1 | . . . . . . . . . . . . . . . . 1 Special Melee Weapon . | . . . . . . . . . . . . . . . . . Unidentified Prototypes 13 | . . . 2 . . 2 . . 1 . . . . . 1 7 Parts Lost 40 | . 1 4 1 . . . 5 . . 2 . 8 3 2 2 12 Power 4 | . . 1 . . . . . . . . . . 1 . 1 1 Propulsion 17 | . . 2 1 . . . 3 . . 1 . 2 1 1 . 6 Utility 15 | . . . . . . . 2 . . 1 . 5 1 . 1 5 Weapon 4 | . 1 1 . . . . . . . . . 1 . 1 . . Highest Loss Streak 12 | . 1 3 1 . . . 3 . . 1 . 3 2 1 1 12 To Critical Strikes 1 | . . . . . . . 1 . . . . . . . . . Average Backups 20 | 1 12 12 18 23 23 23 23 25 22 21 19 21 20 21 22 22 Power . | 1 1 . 1 1 1 1 1 1 . 1 1 1 . 1 . . Propulsion 5 | . 3 2 5 9 8 8 7 7 6 5 5 4 4 3 3 2 Utility 7 | . 5 5 5 6 6 7 7 9 8 9 8 10 8 8 9 11 Weapon 6 | . 2 3 6 7 7 7 7 7 8 6 5 5 6 8 8 7 Tool/Special . | . . . . . . . . . . . . . . . . . Unused Backups 64 | . 9 1 15 2 . . 10 2 . 5 . 9 1 1 . 9 Power 2 | . 1 . 1 . . . . . . . . . . . . . Propulsion 17 | . 3 . 2 . . . 4 1 . 3 . 4 . . . . Utility 23 | . 1 1 5 2 . . 4 1 . . . 4 1 . . 4 Weapon 20 | . 4 . 6 . . . 2 . . 2 . 1 . . . 5 Tool/Special 2 | . . . 1 . . . . . . . . . . 1 . . Average Slot Usage (%) 87 | . 98 99 89 88 89 90 91 90 90 84 78 82 81 82 80 71 Engine 7 | . 11 9 11 11 9 9 9 9 12 9 . 3 . . . . Core 3 | . 2 3 . . . . . . . 3 11 6 9 11 11 1 Treads 27 | . 27 28 30 33 35 36 36 36 33 24 17 17 17 17 16 15 Device 10 | . 10 12 1 . 8 9 10 9 11 7 16 16 16 17 16 15 Storage 8 | . 14 14 11 11 9 9 9 9 6 6 5 5 5 5 5 4 Processor 3 | . . . . . . . . . 5 6 8 11 11 11 11 11 Protection 7 | . 3 1 10 11 9 9 8 9 6 6 4 4 4 5 5 5 Energy Gun 1 | . 15 . . . . . . . . . . . . . . . Energy Cannon 14 | . 9 4 19 21 17 17 17 18 13 13 11 10 10 10 10 10 Ballistic Gun 1 | . 2 23 2 . . . . . . . . . . . . . Peak Build Rating 138 | 7 12 12 24 25 29 32 45 47 57 78 88 115 121 118 116 138 Average Rating 54 | 5 9 10 21 24 27 28 36 45 52 67 86 92 116 107 109 121 On Entrance 52 | . 7 9 11 24 25 27 30 44 44 56 77 88 115 114 110 116 Avg Prop Armor Cover (%) 3 | . . . 3 . . . . . . 4 . 10 . . . . Naked Turns . | . . . . . . . . . . . . . . . . . Heaviest Build 165 | 12 34 34 115 115 114 114 117 118 125 139 139 144 150 147 150 165 Greatest Support 225 | 40 40 40 60 60 80 80 104 104 126 160 210 225 225 220 220 220 Greatest Overweight (x) 1 | . 1 . 1 1 1 1 1 1 . 1 . . . . . 1 Average Overweight (x) . | . . . . 1 1 1 . 1 . . . . . . . . Largest Inventory Capacity 25 | 8 15 15 25 25 25 25 25 25 25 25 25 25 25 25 25 25 Average Capacity 22 | 7 13 15 19 25 25 25 25 25 25 25 25 25 25 25 25 24 Most Carried 25 | 3 15 15 25 25 25 25 25 25 24 25 25 25 25 25 25 25 Average Carried 21 | 1 12 12 19 24 23 24 24 24 22 24 22 24 24 23 24 24 Final Capacity 25 | 8 15 15 25 25 25 25 25 25 25 25 25 25 25 25 25 5 Final Carried 25 | 3 15 14 25 25 24 25 25 25 24 24 23 25 25 24 25 5 Class Distribution -------------------- 44% | Mutant 24% | Scavenger-Mutant 14% | Skirmisher 11% | Commander-Mutant 4% | Scavenger-Skirmisher Dominant Class ---------------- Mutant | -10/Materials Mutant | -10/Mines Mutant | -9/Materials Mutant | -9/Mines Scavenger-Mutant | -8/Materials Scavenger-Mutant | -8/Storage Scavenger-Mutant | -8/Garrison Commander-Mutant | -8/Recycling Commander-Mutant | -6/Factory Commander-Mutant | -6/DSF Skirmisher | -5/Factory Scavenger-Mutant | -5/Garrison Skirmisher | -5/Factory Skirmisher | -5/Upper Caves Scavenger-Skirmisher | -5/Upper Caves Skirmisher | -5/Warlord Resources | -11 -10 -10 -9 -9 -8 -8 -8 -8 -6 -6 -5 -5 -5 -5 -5 -5 ----------- Run | Yrd Mat Min Mat Min Mat Sto Gar Rec Fac DSF Fac Gar Fac Upp Upp War Matter Collected 5461 | 270 355 460 646 94 205 193 695 27 . 260 . 983 306 240 497 230 Remotely . | . . . . . . . . . . . . . . . . . Salvage Created 10388 | 163 700 292 1528 293 205 376 1608 329 . 415 . 2304 1095 155 925 . Parts 480 | 10 50 13 101 17 14 12 83 15 . 7 . 73 45 11 29 . Haulers Intercepted 9 | . 2 . 6 . . . . . . . . . 1 . . . Recyclers Shooed 1 | . 1 . . . . . . . . . . . . . . . Parts Field Recycled . | . . . . . . . . . . . . . . . . . Retrieved Matter . | . . . . . . . . . . . . . . . . . Parts Self-Destructed 20 | . . . . . . . . . . . . . . 8 12 . Prevented 16 | . . . . . . . . . . . . . . . 16 . Parts Restored . | . . . . . . . . . . . . . . . . . Kills | -11 -10 -10 -9 -9 -8 -8 -8 -8 -6 -6 -5 -5 -5 -5 -5 -5 ------- Run | Yrd Mat Min Mat Min Mat Sto Gar Rec Fac DSF Fac Gar Fac Upp Upp War Combat Hostiles Destroyed 202 | . 16 7 36 6 4 8 36 4 . 5 . 44 17 6 13 . Guns 18 | . 7 3 8 . . . . . . . . . . . . . Cannons 103 | . 9 2 18 3 4 2 28 4 . 2 . 18 10 . 3 . AOE 67 | . . 1 10 3 . 6 8 . . . . 23 5 5 6 . Classes Destroyed 21 | 3 5 . 2 1 . 3 2 1 . 2 . 1 . 1 . . Worker 8 | 1 . . 2 1 . 2 . . . 1 . . 1 . . . Builder 1 | . 1 . . . . . . . . . . . . . . . Tunneler 10 | 3 2 1 . 3 . . . . . . . . 1 . . . Hauler 9 | . 2 . 6 . . . . . . . . . 1 . . . Recycler 4 | 1 . . . . . . . 2 . . . . 1 . . . Minesweeper 1 | . . . . . . . . . . . . . . 1 . . Mechanic 1 | . . . . . . 1 . . . . . . . . . . Operator 2 | . . . 2 . . . . . . . . . . . . . Watcher 7 | . 1 . 5 . . . . . . . . . 1 . . . Swarmer 50 | . 6 1 15 . . . 4 . . . . 15 4 5 . . Grunt 77 | . 10 6 13 4 2 4 11 . . 2 . 12 5 . 8 . Brawler 12 | . . . . 2 . 2 3 . . . . 2 1 . 2 . Duelist 5 | . . . . . . . 2 . . . . 1 1 . 1 . Protector 1 | . . . . . . 1 . . . . . . . . . . Sentry 35 | . . . 8 . 2 . 13 3 . . . 8 1 . . . Demolisher 1 | . . . . . . . . . . . . 1 . . . . Specialist 3 | . . . . . . . . . . 1 . 2 . . . . Hunter 9 | . . . . . . 1 2 . . 1 . 1 1 1 2 . Programmer 5 | . . . . . . . . 1 . . . . 4 . . . Heavy 1 | . . . . . . . . . . 1 . . . . . . Behemoth 3 | . . . . . . . 1 . . . . 2 . . . . Best Kill Streak 18 | 4 3 3 7 3 2 9 4 2 . 3 . 18 7 5 4 . Combat Bots Only 18 | . 3 3 6 3 2 7 4 2 . 3 . 18 6 5 4 . Max Kills in Single Turn 5 | 1 1 1 3 1 1 4 4 1 . 1 . 4 5 3 2 . Gunslinging . | . . . . . . . . . . . . . . . . . Exploded 4 | . . 1 3 1 . 3 4 . . . . 4 4 3 2 . Melee . | . . . . . . . . . . . . . . . . . Uniques/NPCs Destroyed . | . . . . . . . . . . . . . . . . . Combat | -11 -10 -10 -9 -9 -8 -8 -8 -8 -6 -6 -5 -5 -5 -5 -5 -5 -------- Run | Yrd Mat Min Mat Min Mat Sto Gar Rec Fac DSF Fac Gar Fac Upp Upp War Hostile Shots Fired 1253 | . 71 67 129 20 10 20 175 12 . 77 . 274 96 44 40 218 Missed 279 | . 17 15 43 3 3 7 46 5 . 23 . 45 28 14 9 21 Hits 974 | . 54 52 86 17 7 13 129 7 . 54 . 229 68 30 31 197 Melee 24 | . . . . . . 1 1 . . . . 1 7 . . 14 Projectile 950 | . 54 52 86 17 7 12 128 7 . 54 . 228 61 30 31 183 AOE 31 | . . . . . . . . . . . . 4 . . . 27 Critical Strikes 42 | . 2 3 2 . . 1 6 1 . 1 . 8 4 . . 14 Part Disruptions 3 | . . . . . . . . . . 1 . . 1 . . 1 Damage Taken 18952 | . 535 721 1021 206 122 251 2190 103 . 974 . 4949 1756 488 630 5006 Core 1504 | . 59 146 78 12 . . 103 31 . 54 . 279 103 46 48 545 Absorbed by Shields 1003 | . . . . . . . 16 . . 127 . 535 . . . 325 Reduced by Siege Mode 1248 | . . . . . . . . . . . . 802 77 . 30 339 Regen/Repaired (Parts) 627 | . 88 . 261 . . 189 . . . . . . . . . 89 Core Remaining (%) 72 | 100 . 18 . 77 . . . 75 . 93 . . . . . . Volleys Fired 654 | 8 65 42 97 19 11 15 104 6 . 16 8 144 53 11 38 17 Largest 2 | 2 2 2 2 2 2 2 2 2 . 2 1 2 2 2 2 2 Hottest 240 | 90 116 83 120 128 128 158 158 180 . 180 90 210 210 210 180 240 Shots Fired 1070 | 16 93 64 180 33 21 25 182 12 . 32 8 227 74 18 52 33 Gun 135 | 16 44 39 36 . . . . . . . . . . . . . Cannon 858 | . 49 23 137 30 20 20 172 12 . 32 8 203 74 16 29 33 Launcher 77 | . . 2 7 3 1 5 10 . . . . 24 . 2 23 . Special . | . . . . . . . . . . . . . . . . . Kinetic 76 | . 1 39 36 . . . . . . . . . . . . . Thermal 917 | 16 92 23 137 30 20 20 172 12 . 32 8 203 74 16 29 33 Explosive 54 | . . 2 7 3 1 5 10 . . . . 24 . 2 . . Electromagnetic 23 | . . . . . . . . . . . . . . . 23 . Robot Hit Streak 31 | 8 9 11 16 8 3 5 15 3 . 9 . 31 21 25 8 9 Robot Miss Streak 5 | 1 4 3 4 5 5 3 4 2 . 2 . 2 1 1 2 2 Penetration Max . | . . . . . . . . . . . . . . . . . Secondary Targets 4 | . 2 . 2 . . . . . . . . . . . . . Max Gunslinging Chain 1 | . 1 . 1 . . . . . . . . . . . . . Shots Hit Robots 627 | 12 60 39 105 17 9 12 102 6 . 25 . 150 46 9 9 26 Core Hits 404 | 6 26 12 58 12 6 20 56 3 . 9 . 131 28 7 25 5 Critical Kills 9 | . . . . . . . . . . 1 . 4 2 2 . . Critical Parts Destroyed . | . . . . . . . . . . . . . . . . . Critical Strikes 11 | 1 1 . . . . . . . . 1 . 4 2 2 . . Burn 2 | 1 1 . . . . . . . . . . . . . . . Meltdown 9 | . . . . . . . . . . 1 . 4 2 2 . . Melee Attacks . | . . . . . . . . . . . . . . . . . Impact . | . . . . . . . . . . . . . . . . . Slashing . | . . . . . . . . . . . . . . . . . Piercing . | . . . . . . . . . . . . . . . . . Sneak Attacks . | . . . . . . . . . . . . . . . . . Combat Hostiles . | . . . . . . . . . . . . . . . . . Follow-up Attacks . | . . . . . . . . . . . . . . . . . Damage Inflicted 25147 | 146 1002 777 3018 726 218 1046 3267 232 . 809 . 8202 2810 586 1292 1016 Guns 1220 | 146 405 355 314 . . . . . . . . . . . . . Cannons 15355 | . 597 314 1961 346 218 285 2488 186 . 809 . 4770 1892 281 202 1006 Explosions 8378 | . . 94 738 281 . 752 779 . . . . 3432 907 305 1090 . Melee . | . . . . . . . . . . . . . . . . . Ramming 194 | . . 14 5 99 . 9 . 46 . . . . 11 . . 10 Kinetic 684 | . 15 355 314 . . . . . . . . . . . . . Thermal 16047 | 146 987 314 1961 346 218 285 2488 186 . 809 . 4770 2048 281 202 1006 Explosive 6989 | . . 94 738 281 . 752 779 . . . . 3432 608 305 . . Electromagnetic 1233 | . . . . . . . . . . . . . 143 . 1090 . Impact . | . . . . . . . . . . . . . . . . . Slashing . | . . . . . . . . . . . . . . . . . Piercing . | . . . . . . . . . . . . . . . . . Highest Corruption 11 | . . . . . . . . . . . . . 2 2 3 11 Average Corruption 2 | . . . . . . . . . . . . . 1 2 2 6 Corruption Purged . | . . . . . . . . . . . . . . . . . Corruption Blocked . | . . . . . . . . . . . . . . . . . Effects 36 | . . . . . . . . . . . . . 6 9 15 6 Message Errors 8 | . . . . . . . . . . . . . 1 1 3 3 Matter Fused 9 | . . . . . . . . . . . . . 3 2 4 . Heat Flow Errors 9 | . . . . . . . . . . . . . 1 4 4 . Energy Discharges 3 | . . . . . . . . . . . . . . 1 . 2 Parts Rejected 1 | . . . . . . . . . . . . . 1 . . . Parts Fused 1 | . . . . . . . . . . . . . . . 1 . Data Loss (minor) 2 | . . . . . . . . . . . . . . . 2 . Data Loss (major) 2 | . . . . . . . . . . . . . . 1 1 . Misdirections 1 | . . . . . . . . . . . . . . . . 1 Overload Shots . | . . . . . . . . . . . . . . . . . Overflow Damage 419 | . 14 . 61 22 . 5 9 26 . . . 25 216 25 . 16 Projectiles 297 | . 14 . 42 16 . 5 . 26 . . . 2 151 25 . 16 Explosions 116 | . . . 19 . . . 9 . . . . 23 65 . . . Melee 6 | . . . . 6 . . . . . . . . . . . . Knockbacks 1 | . . . . 1 . . . . . . . . . . . . Impact 1 | . . . . 1 . . . . . . . . . . . . Kinetic . | . . . . . . . . . . . . . . . . . Secondary . | . . . . . . . . . . . . . . . . . Self-Inflicted Damage 901 | . . . 71 20 16 . 70 . . . . 159 466 . 99 . Shots 21 | . . . 3 1 1 . 3 . . . . 5 6 . 2 . Rammed 15 | . . 1 2 6 . 1 . 3 . . . . 1 . . 1 Targets Rammed 17 | . . 1 2 6 . 1 . 5 . . . . 1 . . 1 Kicked . | . . . . . . . . . . . . . . . . . Crushed 2 | . . . . . . . . 2 . . . . . . . . Highest Temperature 371 | 150 330 218 342 344 144 198 321 123 . 282 138 277 371 188 195 300 Average Temperature 85 | 60 84 70 101 122 48 80 95 47 . 89 52 66 71 68 53 116 Received Heat Transfer 3463 | . 186 453 303 102 36 126 626 45 . 159 . 849 309 18 153 98 Effects 7 | . . . 2 . . . 1 . . . . 1 3 . . . Energy Bleed 5 | . . . 2 . . . 1 . . . . 1 1 . . . Interference 2 | . . . . . . . . . . . . . 2 . . . Siege Activations 28 | . . . . . . . . . . 1 . 14 5 3 4 1 Total Turns 648 | . . . . . . . . . . 20 . 353 89 33 97 56 Longest Duration 81 | . . . . . . . . . . 20 . 81 39 23 37 56 Martial Activations . | . . . . . . . . . . . . . . . . . Shielding Activations . | . . . . . . . . . . . . . . . . . Robots Disrupted . | . . . . . . . . . . . . . . . . . Combat Hostiles . | . . . . . . . . . . . . . . . . . Robots Corrupted 5 | . . . . 1 . . . . . . . . . . 4 . Combat Hostiles 4 | . . . . . . . . . . . . . . . 4 . Parts Fried 7 | . . . . 1 . . . . . . . . . . 6 . Impact Corruptions 1 | . . . . 1 . . . . . . . . . . . . Robots Melted 14 | . . 1 . . . . . . . 4 . 5 2 2 . . Combat Hostiles 10 | . . 1 . . . . . . . 3 . 3 2 1 . . Parts Melted 69 | 1 2 1 6 1 . 2 11 1 . 11 . 19 11 3 . . Heat Transferred 22821 | 458 2332 666 3145 592 370 444 3737 261 . 1168 . 6678 2112 348 261 249 Parts Sabotaged 3 | . . . . . . . . . . . . . 3 . . . Parts Stolen . | . . . . . . . . . . . . . . . . . Parts Stripped . | . . . . . . . . . . . . . . . . . Power Chain Reactions 2 | . . . . . . . . . . . . . . . 2 . Alert | -11 -10 -10 -9 -9 -8 -8 -8 -8 -6 -6 -5 -5 -5 -5 -5 -5 ------- Run | Yrd Mat Min Mat Min Mat Sto Gar Rec Fac DSF Fac Gar Fac Upp Upp War Maximum Alert Level 5 | . . . 2 1 . 1 5 3 2 2 1 4 3 . . . Low Security (%) 38 | 100 100 100 28 96 100 78 . . . . 67 5 . . . . Level 1 6 | . . . 13 3 . 21 5 . . 17 32 12 . . . . Level 2 20 | . . . 57 . . . 16 17 100 82 . 3 22 . . . Level 3 23 | . . . . . . . 32 82 . . . 35 77 . . . Level 4 8 | . . . . . . . 30 . . . . 42 . . . . Level 5 2 | . . . . . . . 14 . . . . . . . . . High Security . | . . . . . . . . . . . . . . . . . Max Security . | . . . . . . . . . . . . . . . . . Sterilizations 1 | . . . . . . . . . . 1 . . . . . . Peak Influence 1841 | 15 121 65 580 222 58 307 1841 907 621 563 233 1584 1016 . . . Initial 831 | . 3 27 . 222 2 14 193 828 621 371 233 96 831 . . . Average 507 | 2 53 13 379 56 15 68 1053 766 576 475 185 967 825 . . . Influence Increases 8834 | 25 566 235 1248 316 134 373 1878 412 350 383 25 1608 731 205 345 . Destroy 0b10 Robot/C 4520 | . 320 140 720 220 80 240 820 100 . 220 . 940 340 120 260 . Destroy 0b10 Robot/NC 255 | 25 35 5 75 20 . 20 . 10 . 5 . 30 25 5 . . Destroy Leader 672 | . 86 30 192 30 30 40 30 . . 40 . 60 74 20 40 . Allied During Kill 241 | . . . . 29 . 16 16 64 . 103 . 13 . . . . Successful Hack 124 | . 4 . 24 . . 9 14 22 . . . 7 44 . . . Select Force Hacks 330 | . 60 . 60 . . . . 210 . . . . . . . . Disable Machine 360 | . . . 75 . . 15 75 . . . 15 75 105 . . . Anti-Garrison Action 1050 | . . . . . . . 750 . . . . 300 . . . . Destroy Structure 602 | . 1 15 72 17 9 33 143 6 . . 10 168 128 . . . Advance Influence 350 | . . . . . . . . . 350 . . . . . . . Lose Combat Pursuer 330 | . 60 45 30 . 15 . 30 . . 15 . 15 15 60 45 . Influence Decreases 8834 | 20 499 307 678 878 108 109 335 1605 467 470 331 162 1553 665 557 90 Entered New Map 3514 | . 2 45 . 348 6 20 105 1013 377 160 211 42 753 283 59 90 Time Decay 4169 | 20 487 222 668 470 102 88 . 592 90 . 120 . 470 362 478 . Lost Part 280 | . 10 40 10 . . . 50 . . 20 . 80 30 20 20 . Lost Ally 571 | . . . . 60 . 1 180 . . 290 . 40 . . . . Purge Threat 300 | . . . . . . . . . . . . . 300 . . . Squads Dispatched 18 | . 5 . 3 . 1 4 . . . 2 . . 3 . . . Investigation 6 | . 3 . 2 . . 1 . . . . . . . . . . Extermination 2 | . . . . . . . . . . . . . 2 . . . Reinforcement 6 | . 2 . 1 . 1 . . . . 2 . . . . . . Assault 3 | . . . . . . 2 . . . . . . 1 . . . Garrison 1 | . . . . . . 1 . . . . . . . . . . Intercept . | . . . . . . . . . . . . . . . . . Searches Triggered . | . . . . . . . . . . . . . . . . . Construction Impeded . | . . . . . . . . . . . . . . . . . Haulers Reinforced . | . . . . . . . . . . . . . . . . . Active Scanning Responses . | . . . . . . . . . . . . . . . . . Cargo Convoy Interrupts . | . . . . . . . . . . . . . . . . . Stealth | -11 -10 -10 -9 -9 -8 -8 -8 -8 -6 -6 -5 -5 -5 -5 -5 -5 --------- Run | Yrd Mat Min Mat Min Mat Sto Gar Rec Fac DSF Fac Gar Fac Upp Upp War Distress Signals 10 | . 2 1 5 . . . . . . . . . . . . 2 Communications Jammed 8 | . . . . . . . . . . . . 8 . . . . Distress Signals 8 | . . . . . . . . . . . . 8 . . . . Times Spotted 299 | . 30 9 52 10 6 17 36 5 . 8 3 47 20 10 14 32 Peak Tracking Total 17 | . 4 3 6 3 2 5 5 2 . 4 2 9 6 5 4 17 Tactical Retreats 18 | . 3 2 2 . 1 . 2 . . 1 . 1 1 2 2 1 Traps | -11 -10 -10 -9 -9 -8 -8 -8 -8 -6 -6 -5 -5 -5 -5 -5 -5 ------- Run | Yrd Mat Min Mat Min Mat Sto Gar Rec Fac DSF Fac Gar Fac Upp Upp War Traps Triggered 13 | . 4 . . . . . 6 . . 2 . 1 . . . . Indirectly . | . . . . . . . . . . . . . . . . . Trap Hack Attempts . | . . . . . . . . . . . . . . . . . Triggered . | . . . . . . . . . . . . . . . . . Disarmed . | . . . . . . . . . . . . . . . . . Reprogrammed . | . . . . . . . . . . . . . . . . . Reused . | . . . . . . . . . . . . . . . . . Traps Extracted . | . . . . . . . . . . . . . . . . . Installed . | . . . . . . . . . . . . . . . . . Triggered . | . . . . . . . . . . . . . . . . . Most Traps Carried 4 | . . . . . . . . . . . . . . 4 4 4 Machines | -11 -10 -10 -9 -9 -8 -8 -8 -8 -6 -6 -5 -5 -5 -5 -5 -5 ---------- Run | Yrd Mat Min Mat Min Mat Sto Gar Rec Fac DSF Fac Gar Fac Upp Upp War Machines Disabled 42 | . . . 5 1 . 1 15 . . . 1 10 7 1 . 1 Max in Single Turn 4 | . . . 1 1 . 1 2 . . . 1 1 4 1 . 1 Garrison Relay 9 | . . . . . . . 5 . . . . 4 . . . . Phase Generator 1 | . . . . . . . 1 . . . . . . . . . Machines Repaired . | . . . . . . . . . . . . . . . . . Machines Dismantled . | . . . . . . . . . . . . . . . . . Machines Sabotaged . | . . . . . . . . . . . . . . . . . Overloaded Fab Kills . | . . . . . . . . . . . . . . . . . Hacking | -11 -10 -10 -9 -9 -8 -8 -8 -8 -6 -6 -5 -5 -5 -5 -5 -5 --------- Run | Yrd Mat Min Mat Min Mat Sto Gar Rec Fac DSF Fac Gar Fac Upp Upp War Machines Accessed 56 | . 8 . 12 . . 5 2 12 2 . 2 3 7 1 1 1 Terminals 32 | . 5 . 7 . . 3 2 5 1 . 1 3 4 1 . . Fabricators 3 | . . . . . . . . . 1 . . . 2 . . . Repair Stations 4 | . 1 . 2 . . 1 . . . . . . . . . . Recycling Units 11 | . 2 . 2 . . . . 7 . . . . . . . . Scanalyzers 2 | . . . 1 . . . . . . . . . 1 . . . Garrison Access 2 | . . . . . . 1 . . . . 1 . . . . . Total Hacks 126 | . 24 . 30 . . 10 3 30 3 . 3 4 15 2 1 1 Successful 73 | . 14 . 17 . . 5 1 20 2 . 1 1 8 2 1 1 Failed 51 | . 10 . 12 . . 5 2 9 1 . 2 3 7 . . . Catastrophic 5 | . . . . . . . 1 1 . . 1 1 1 . . . Database Lockouts 2 | . . . 1 . . . . 1 . . . . . . . . Manual 67 | . 19 . 14 . . 4 . 26 . . 2 . 2 . . . Terminals 89 | . 19 . 19 . . 7 3 21 1 . 2 4 11 2 . . Fabricators 4 | . . . . . . . . . 2 . . . 2 . . . Repair Stations 9 | . 2 . 5 . . 2 . . . . . . . . . . Recycling Units 16 | . 3 . 4 . . . . 9 . . . . . . . . Scanalyzers 4 | . . . 2 . . . . . . . . . 2 . . . Garrison Access 2 | . . . . . . 1 . . . . 1 . . . . . Terminal Hacks 26 | . 3 . 4 . . 1 1 6 1 . . 1 5 2 1 1 Record 2 | . . . . . . . . . . . . . . 2 . . Prototype ID Bank 7 | . 1 . 2 . . . . 4 . . . . . . . . Open Door 4 | . . . . . . 1 . . . . . 1 . . 1 1 Open DSF 1 | . . . . . . . . . 1 . . . . . . . Emergency Access Points 1 | . . . . . . . 1 . . . . . . . . . Terminal Index 2 | . 1 . 1 . . . . . . . . . . . . . Alert Level 2 | . . . . . . . . 1 . . . . 1 . . . Unreport Threat 2 | . . . . . . . . . . . . . 2 . . . Hauler Manifests 2 | . . . 1 . . . . 1 . . . . . . . . Registered Components 2 | . 1 . . . . . . . . . . . 1 . . . Registered Prototypes 1 | . . . . . . . . . . . . . 1 . . . Fabricator Hacks 2 | . . . . . . . . . 1 . . . 1 . . . Network Status 2 | . . . . . . . . . 1 . . . 1 . . . Repair Station Hacks 7 | . 2 . 3 . . 2 . . . . . . . . . . Scan Component 4 | . 1 . 2 . . 1 . . . . . . . . . . Repair 3 | . 1 . 1 . . 1 . . . . . . . . . . Recycling Unit Hacks . | . . . . . . . . . . . . . . . . . Scanalyzer 2 | . . . 1 . . . . . . . . . 1 . . . Retrieve Study 2 | . . . 1 . . . . . . . . . 1 . . . Garrison Access Hacks 2 | . . . . . . 1 . . . . 1 . . . . . Unlock Access 2 | . . . . . . 1 . . . . 1 . . . . . Unauthorized Hacks 34 | . 9 . 9 . . 1 . 14 . . . . 1 . . . Terminals 23 | . 7 . 7 . . 1 . 7 . . . . 1 . . . Botnet 8 | . 2 . 2 . . 1 . 2 . . . . 1 . . . Skim 15 | . 5 . 5 . . . . 5 . . . . . . . . Fabricators . | . . . . . . . . . . . . . . . . . Repair Stations . | . . . . . . . . . . . . . . . . . Recycling Units 11 | . 2 . 2 . . . . 7 . . . . . . . . Tunnel 11 | . 2 . 2 . . . . 7 . . . . . . . . Scanalyzers . | . . . . . . . . . . . . . . . . . Garrison Access . | . . . . . . . . . . . . . . . . . Data Cores Recovered . | . . . . . . . . . . . . . . . . . Used . | . . . . . . . . . . . . . . . . . Hacking Detections 35 | . 6 . 7 . . 4 2 5 1 . 1 2 7 . . . Full Trace Events 1 | . . . . . . 1 . . . . . . . . . . Feedback Events . | . . . . . . . . . . . . . . . . . Feedback Blocked . | . . . . . . . . . . . . . . . . . Robot Schematics Acquired . | . . . . . . . . . . . . . . . . . Robots Built . | . . . . . . . . . . . . . . . . . Authchips . | . . . . . . . . . . . . . . . . . Time . | . . . . . . . . . . . . . . . . . Total Robot Build Rating . | . . . . . . . . . . . . . . . . . Part Schematics Acquired . | . . . . . . . . . . . . . . . . . Parts Built . | . . . . . . . . . . . . . . . . . Authchips . | . . . . . . . . . . . . . . . . . Time . | . . . . . . . . . . . . . . . . . Total Part Build Rating . | . . . . . . . . . . . . . . . . . Part Studies Acquired 2 | . . . 1 . . . . . . . . . 1 . . . Parts Repaired 3 | . 1 . 1 . . 1 . . . . . . . . . . Time 102 | . 26 . 38 . . 38 . . . . . . . . . . Parts Recycled . | . . . . . . . . . . . . . . . . . Recycled Matter . | . . . . . . . . . . . . . . . . . Retrieved Matter . | . . . . . . . . . . . . . . . . . Retrieved Components . | . . . . . . . . . . . . . . . . . Parts Scanalyzed . | . . . . . . . . . . . . . . . . . Part Schematics Acquired . | . . . . . . . . . . . . . . . . . Parts Damaged . | . . . . . . . . . . . . . . . . . Bothacking | -11 -10 -10 -9 -9 -8 -8 -8 -8 -6 -6 -5 -5 -5 -5 -5 -5 ------------ Run | Yrd Mat Min Mat Min Mat Sto Gar Rec Fac DSF Fac Gar Fac Upp Upp War Used RIF Installer . | . . . . . . . . . . . . . . . . . Robots Hacked . | . . . . . . . . . . . . . . . . . Non-combat . | . . . . . . . . . . . . . . . . . Combat . | . . . . . . . . . . . . . . . . . Robot Hacks Applied . | . . . . . . . . . . . . . . . . . Relay Couplers Released 34 | . . . . . . . 18 . . . . 16 . . . . Machine Destruction 34 | . . . . . . . 18 . . . . 16 . . . . Fabnet Peak Effective % . | . . . . . . . . . . . . . . . . . Robots Rewired 27 | . . . . . . . 12 15 . . . . . . . . Allies Hacked . | . . . . . . . . . . . . . . . . . Hacks Repelled . | . . . . . . . . . . . . . . . . . Allies | -11 -10 -10 -9 -9 -8 -8 -8 -8 -6 -6 -5 -5 -5 -5 -5 -5 -------- Run | Yrd Mat Min Mat Min Mat Sto Gar Rec Fac DSF Fac Gar Fac Upp Upp War Total Allies 35 | . . . . 4 . 2 12 15 . . . 2 . . . . Largest Group 18 | . . . . 4 . 2 3 18 18 18 . 2 . . . . Highest-Rated Group 306 | . . . . 71 . 62 72 306 306 306 . 84 . . . . Highest-Rated Ally 46 | . . . . 31 . 31 31 27 27 27 . 46 . . . . Initial Warlord ECA Mod 22 | . . . . . . . . 9 7 7 16 16 22 22 22 22 Total Orders . | . . . . . . . . . . . . . . . . . Ally Attacks 169 | . . . . 29 . 42 32 16 . 40 . 10 . . . . Total Damage 2996 | . . . . 313 . 642 419 408 . 819 . 395 . . . . Kills 26 | . . . . 5 . 5 6 1 . 6 . 3 . . . . Allies Corrupted 1 | . . . . 1 . . . . . . . . . . . . Allies Melted . | . . . . . . . . . . . . . . . . . Intel | -11 -10 -10 -9 -9 -8 -8 -8 -8 -6 -6 -5 -5 -5 -5 -5 -5 ------- Run | Yrd Mat Min Mat Min Mat Sto Gar Rec Fac DSF Fac Gar Fac Upp Upp War Active Infowar (turns) 12515 | 57 1193 851 298 . 421 299 1802 1137 196 233 256 1624 1117 752 1169 1110 Sensors 4160 | . . . . . 2 . . . . . 151 1 1024 719 1154 1109 Terrain 4257 | . . . . . . . . . 176 233 256 3 669 688 1122 1110 Seismic 7491 | 57 1193 851 298 . 419 299 1802 1137 195 . 97 1141 2 . . . Cloaking 2 | . . . . . . . . . . . . . . . . 2 Jamming 1750 | . . . . . . . . . . . 251 1412 . 28 59 . Robot Analysis Total . | . . . . . . . . . . . . . . . . . Derelict Logs Recovered 4 | . . 1 . 1 . . . . . . . . . 1 1 . Drone Launches . | . . . . . . . . . . . . . . . . . Drone Recoveries . | . . . . . . . . . . . . . . . . . Exploration | -11 -10 -10 -9 -9 -8 -8 -8 -8 -6 -6 -5 -5 -5 -5 -5 -5 ------------- Run | Yrd Mat Min Mat Min Mat Sto Gar Rec Fac DSF Fac Gar Fac Upp Upp War Turns Passed 19525 | 108 1646 996 2957 1702 474 382 2354 1861 196 379 256 1704 1199 828 1239 1244 Spaces Moved 8087 | 46 761 516 1145 669 171 113 809 537 118 148 139 635 587 459 654 580 Core 48 | 2 . . . . . . . . . . . . . . . 46 Treads 8039 | 44 761 516 1145 669 171 113 809 537 118 148 139 635 587 459 654 534 Legs . | . . . . . . . . . . . . . . . . . Wheels . | . . . . . . . . . . . . . . . . . Hover . | . . . . . . . . . . . . . . . . . Flight . | . . . . . . . . . . . . . . . . . Fastest Speed 50 | 50 160 160 160 240 240 240 152 232 151 151 160 150 150 150 155 50 Average Speed 185 | 155 160 160 214 240 240 240 220 232 151 164 160 159 150 154 155 146 Slowest Speed 240 | 160 240 160 240 240 240 240 240 232 154 236 160 162 150 155 155 160 Overloaded Moves . | . . . . . . . . . . . . . . . . . Propulsion Burnouts . | . . . . . . . . . . . . . . . . . Robots Hopped . | . . . . . . . . . . . . . . . . . Potential Cave-ins 2 | . . . . . . . . . . . . . 2 . . . Cave-ins Triggered . | . . . . . . . . . . . . . . . . . Exploration Rate (%) 60 | 4 96 88 92 99 13 23 93 94 4 94 6 85 20 65 80 64 Regions Visited 16 Branch Regions 7 Pre-discovered Areas 16 | . 2 . 4 . . . . 8 . . . . . 2 . . Known Exits Taken 10 | . 1 . 1 1 1 1 . . 1 . 1 . 1 1 1 . Unknown Exits Taken 3 | 1 . 1 . . . . . 1 . . . . . . . . Scrap Searched 9 | . . 2 . 1 . . . . . . . . . 2 4 . Spaces Dug 43 | . . . 3 1 . . . . . . 4 4 11 3 17 . Terrain Destroyed 583 | . . 18 66 20 10 39 229 6 . . 5 70 71 15 31 3 Melee . | . . . . . . . . . . . . . . . . . Projectile 97 | . . . 17 7 1 2 1 6 . . 5 6 22 7 20 3 AOE 486 | . . 18 49 13 9 37 228 . . . . 64 49 8 11 . Terrain Rammed . | . . . . . . . . . . . . . . . . . Walls Destroyed . | . . . . . . . . . . . . . . . . . Machines Disabled . | . . . . . . . . . . . . . . . . . Actions | -11 -10 -10 -9 -9 -8 -8 -8 -8 -6 -6 -5 -5 -5 -5 -5 -5 --------- Run | Yrd Mat Min Mat Min Mat Sto Gar Rec Fac DSF Fac Gar Fac Upp Upp War Total 11473 | 63 1087 618 1468 726 210 192 1200 1134 134 254 165 1090 825 551 816 940 Wait 1666 | . 191 36 118 16 8 44 50 389 2 50 7 188 136 54 89 288 Move 8073 | 45 760 515 1144 668 170 113 808 536 117 147 139 634 586 458 653 580 Hop . | . . . . . . . . . . . . . . . . . Pick Up 165 | 3 25 5 38 3 1 2 25 2 3 6 2 28 10 3 4 5 Fast Attach 57 | 7 10 . 4 . 2 3 2 . 2 4 1 5 3 1 2 11 Attach 65 | . 1 4 7 . 3 1 8 . 4 2 4 12 6 2 4 7 Detach 15 | . . . . . 2 . 1 . . 1 2 2 . . 1 6 Swap 282 | . 19 12 25 10 11 10 51 4 4 10 1 50 23 20 23 9 Drop 165 | . 16 3 33 4 2 3 29 2 2 16 1 27 7 2 2 16 Fire 654 | 8 65 42 97 19 11 15 104 6 . 16 8 144 53 11 38 17 Melee . | . . . . . . . . . . . . . . . . . Ram . | . . . . . . . . . . . . . . . . . Kick . | . . . . . . . . . . . . . . . . . Crush 17 | . . 1 2 6 . 1 . 5 . . . . 1 . . 1 Escape Stasis 4 | . . . . . . . 4 . . . . . . . . . Rewire 310 | . . . . . . . 118 190 . 2 . . . . . . Trap . | . . . . . . . . . . . . . . . . . Miscellaneous . | . . . . . . . . . . . . . . . . . Route ------- -11/Scrapyard -10/Materials (discovered 6 exits: *Mat x3 / *Min x2 / *Sub) -10/Mines (discovered 2 exits: *Mat / Sub) -9/Materials (discovered 4 exits: *Mat x3 / *Min) -9/Mines (discovered 4 exits: *Mat x2 / [*Exi] / [*Zio]) -8/Materials (discovered 2 exits: Fac / *Sto) -8/Storage (discovered 3 exits: Fac / Rec / Gar) -8/Garrison (discovered 3 exits: *Rec x3) -8/Recycling -6/Factory (discovered 5 exits: Fac x2 / Ext x2 / DSF) -6/DSF -5/Factory -5/Garrison (discovered 3 exits: *Fac x3) -5/Factory (discovered 2 exits: *Fac / *Upp) -5/Upper Caves -5/Upper Caves (discovered 2 exits: *Fac / *War) -5/Warlord History --------- Turn | Location | Event 13 | -11/Scrapyard | Discovered new exit (range 15) 109 | -11/Scrapyard | Entered Materials 303 | -10/Materials | Build established: Mutant 363 | -10/Materials | Discovered new exit (range 15) 614 | -10/Materials | Discovered new exit (range 6) 706 | -10/Materials | Repaired Lgt. Armor Plating 789 | -10/Materials | Discovered new exit (range 16) 948 | -10/Materials | Discovered new exit (range 5) 1363 | -10/Materials | Discovered new exit (range 6) 1460 | -10/Materials | Discovered new exit (range 12) 1514 | -10/Materials | Learned 4 Subcaves zone layouts 1560 | -10/Materials | Learned Materials emergency access door positions 1595 | -10/Materials | Learned 2 Mines zone layouts 1621 | -10/Materials | Learned location of 2 exits from Subcaves 1638 | -10/Materials | Identified exit to Mines 1638 | -10/Materials | Identified exit to Subcaves 1680 | -10/Materials | Learned location of 1 exit from Storage 1711 | -10/Materials | Learned 4 Materials zone layouts 1755 | -10/Materials | Entered Mines 1857 | -10/Mines | Core integrity fell below 50% 1883 | -10/Mines | Lost 3 parts (2n1w) 1941 | -10/Mines | Learned Materials trap positions 2226 | -10/Mines | Discovered new exit (range 13) 2407 | -10/Mines | Received a Rocket Launcher from a helpful Derelict 2504 | -10/Mines | Core integrity fell below 20% 2563 | -10/Mines | Assembled infested the area 2568 | -10/Mines | Assisted by a Guerilla fighting off Assembled 2689 | -10/Mines | A weapon hastily lodged in a ceiling crevice suddenly fell to the ground 2751 | -10/Mines | Entered Materials 2751 | -9/Materials | Evolved 2 slots: Propulsion x1, Utility x1 2752 | -9/Materials | Identified exit to Mines 2753 | -9/Materials | Loaded intel: 18 trap records 3558 | -9/Materials | Central database locked down 3656 | -9/Materials | Discovered new exit (range 4) 4241 | -9/Materials | Discovered new exit (range 5) 4842 | -9/Materials | Learned 8 Materials zone layouts 4875 | -9/Materials | Learned 2 Storage zone layouts 4900 | -9/Materials | Learned Storage security intel 4920 | -9/Materials | Learned Materials emergency access door positions 4923 | -9/Materials | Identified exit to Materials 4927 | -9/Materials | Learned location of 1 exit from Storage 4939 | -9/Materials | Learned location of Zion (-7) 5186 | -9/Materials | Repaired Hvy. Armor Plating 5708 | -9/Materials | Entered Mines 5787 | -9/Mines | Discovered exit to Materials (range 14) 5857 | -9/Mines | Deemed a non-threat by the Exiles lab entrance 5857 | -9/Mines | Discovered new exit (range 5) 5926 | -9/Mines | Assisted by bots powering up and referring to "LRC-V3" 6246 | -9/Mines | Received a Mining Laser from a helpful Derelict 6355 | -9/Mines | Discovered exit to Materials (range 14) 6956 | -9/Mines | A Derelict revealed a hidden shortcut to a safe place 7008 | -9/Mines | Found a hidden stash of uninstalled traps 7022 | -9/Mines | Found DCF Scrap (16 items) 7410 | -9/Mines | Entered Materials 7410 | -8/Materials | Evolved 2 slots: Propulsion x1, Utility x1 7411 | -8/Materials | Identified exit to Storage 7412 | -8/Materials | Identified exit to Factory 7707 | -8/Materials | Build established: Scavenger-Mutant 7884 | -8/Materials | Entered Storage 7885 | -8/Storage | Identified exit to Recycling 7999 | -8/Storage | Repaired Hvy. Armor Plating 8077 | -8/Storage | Met a pair of Derelict thieves 8184 | -8/Storage | Garrison activated, responded to threat 8203 | -8/Storage | Destroyed 7 combat bots 8266 | -8/Storage | Identified exit to Garrison 8266 | -8/Storage | Entered Garrison 8266 | -8/Garrison | Accompanied by 1 ally 8282 | -8/Garrison | Phase Generator disabled 8421 | -8/Garrison | Triggered checkpoint 8438 | -8/Garrison | Triggered checkpoint 8472 | -8/Garrison | Garrison Relay disabled 8588 | -8/Garrison | Triggered checkpoint 8604 | -8/Garrison | Triggered checkpoint 8786 | -8/Garrison | Garrison Relay disabled 8870 | -8/Garrison | Discovered exit to Recycling (range 11) 9022 | -8/Garrison | Triggered checkpoint 9262 | -8/Garrison | Spotted B-75 Beast 9289 | -8/Garrison | Discovered exit to Recycling (range 6) 9347 | -8/Garrison | Destroyed B-75 Beast 9359 | -8/Garrison | Triggered checkpoint 9377 | -8/Garrison | Lost 3 parts (2n1u) 9470 | -8/Garrison | Garrison Relay disabled 9551 | -8/Garrison | Garrison Relay disabled 9683 | -8/Garrison | Build established: Mutant 9771 | -8/Garrison | Lost 3 allies 9813 | -8/Garrison | Discovered exit to Recycling (range 10) 9952 | -8/Garrison | Triggered checkpoint 10066 | -8/Garrison | Lost 6 allies 10187 | -8/Garrison | Garrison Relay disabled 10272 | -8/Garrison | Triggered checkpoint 10322 | -8/Garrison | Triggered checkpoint 10369 | -8/Garrison | Build established: Scavenger-Mutant 10484 | -8/Garrison | Triggered checkpoint 10620 | -8/Garrison | Entered Recycling 10620 | -8/Recycling | Accompanied by 3 allies 10944 | -8/Recycling | Build established: Commander-Mutant 11787 | -8/Recycling | Discovered new exit (range 5) 11887 | -8/Recycling | Scanned before Scraplab entrance 12200 | -8/Recycling | Learned location of 2 exits from Factory 12255 | -8/Recycling | Learned 2 Lower Caves zone layouts 12302 | -8/Recycling | Learned Factory repair station intel 12481 | -8/Recycling | Entered Factory 12481 | -6/Factory | Accompanied by 18 allies 12481 | -6/Factory | Evolved 4 slots: Power x1, Propulsion x1, Utility x2 12482 | -6/Factory | Identified exit to Factory 12483 | -6/Factory | Identified exit to Extension 12484 | -6/Factory | Loaded intel: 6 repair station locations 12677 | -6/Factory | Identified exit to DSF 12677 | -6/Factory | Entered DSF 12677 | -6/DSF | Accompanied by 18 allies 12722 | -6/DSF | Additional patrols routed to DSF 12744 | -6/DSF | Lost 3 allies 12936 | -6/DSF | Sterilization system engaged 12947 | -6/DSF | Lost 3 allies 12956 | -6/DSF | Ambient heat levels rising (+10) 12960 | -6/DSF | Discovered exit to Factory (range 12) 12971 | -6/DSF | Ambient heat levels rising (+10) 12986 | -6/DSF | Ambient heat levels rising (+10) 13001 | -6/DSF | Ambient heat levels rising (+10) 13016 | -6/DSF | Ambient heat levels rising (+10) 13031 | -6/DSF | Ambient heat levels rising (+10) 13039 | -6/DSF | Lost 6 allies 13046 | -6/DSF | Ambient heat levels rising (+10) 13056 | -6/DSF | Entered Factory 13056 | -5/Factory | Evolved 2 slots: Propulsion x1, Utility x1 13312 | -5/Factory | Identified exit to Garrison 13312 | -5/Factory | Entered Garrison 13384 | -5/Garrison | Triggered checkpoint 13423 | -5/Garrison | Garrison Relay disabled 13465 | -5/Garrison | Rescued a captive Derelict 13466 | -5/Garrison | Rescued a captive Derelict 13602 | -5/Garrison | Build established: Mutant 13612 | -5/Garrison | Triggered checkpoint 13617 | -5/Garrison | Spotted B-75 Beast 13659 | -5/Garrison | Destroyed B-75 Beast 13679 | -5/Garrison | Lost 3 parts (2u1w) 13712 | -5/Garrison | Destroyed 18 combat bots 13773 | -5/Garrison | Triggered checkpoint 13886 | -5/Garrison | Triggered checkpoint 13929 | -5/Garrison | Build established: Scavenger-Mutant 13932 | -5/Garrison | Garrison Relay disabled 14002 | -5/Garrison | Discovered new exit (range 12) 14149 | -5/Garrison | Triggered checkpoint 14242 | -5/Garrison | Triggered checkpoint 14284 | -5/Garrison | Garrison Relay disabled 14519 | -5/Garrison | Discovered new exit (range 12) 14626 | -5/Garrison | Triggered checkpoint 14718 | -5/Garrison | Triggered checkpoint 14835 | -5/Garrison | Spotted B-75 Beast 14892 | -5/Garrison | Destroyed B-75 Beast 14997 | -5/Garrison | Discovered new exit (range 8) 15010 | -5/Garrison | Identified exit to Factory 15016 | -5/Garrison | Entered Factory 15616 | -5/Factory | First assault squad dispatched 15761 | -5/Factory | Discovered new exit (range 15) 15821 | -5/Factory | Identified exit to Factory 16129 | -5/Factory | Discovered new exit (range 19) 16211 | -5/Factory | Identified exit to Upper Caves 16215 | -5/Factory | Entered Upper Caves 16342 | -5/Upper Caves | Met a Warlord Commander 16343 | -5/Upper Caves | Learned location of Warlord (-5) 16344 | -5/Upper Caves | Warlord Commander delivered Encrypted Comm Array 16344 | -5/Upper Caves | Found Encrypted Comm Array 16537 | -5/Upper Caves | Encountered a Warlord checkpoint 16551 | -5/Upper Caves | Build established: Skirmisher 16777 | -5/Upper Caves | Discovered new exit (range 11) 16965 | -5/Upper Caves | Identified exit to Upper Caves 16998 | -5/Upper Caves | Learned Factory terminal intel 17019 | -5/Upper Caves | Attracted the attention of an 0b10 base 17021 | -5/Upper Caves | Learned Factory security intel 17043 | -5/Upper Caves | Entered another Upper Caves area 17137 | -5/Upper Caves | Learned Factory non-interactive machine intel 17243 | -5/Upper Caves | Discovered exit to Factory (range 11) 17838 | -5/Upper Caves | Build established: Scavenger-Skirmisher 17904 | -5/Upper Caves | Found Alien Artifact 17905 | -5/Upper Caves | Identified Core Expander 17905 | -5/Upper Caves | Installed Core Expander, added new Utility slot 18043 | -5/Upper Caves | Discovered new exit (range 9) 18054 | -5/Upper Caves | Identified exit to Warlord 18282 | -5/Upper Caves | Entered Warlord 18335 | -5/Warlord | System corruption cleaned by Quarantine Array 18431 | -5/Warlord | Found Prototype Reactor 18431 | -5/Warlord | Identified Vortex Chain Reactor 18442 | -5/Warlord | Found Prototype Device 18442 | -5/Warlord | Identified Exp. Cloaking Device 18575 | -5/Warlord | Met Warlord 18600 | -5/Warlord | Warlord's base attacked by MAIN.C 18728 | -5/Warlord | Build established: Skirmisher 18791 | -5/Warlord | Found Prototype Piercing Weapon 18791 | -5/Warlord | Identified Vortex Lance 18796 | -5/Warlord | Found Prototype Energy Gun 18796 | -5/Warlord | Identified Vortex Rail 18950 | -5/Warlord | Warlord forces counterattacked 19275 | -5/Warlord | Warlord base infiltrated, sounded retreat 19411 | -5/Warlord | Attacked by Warlord forces 19411 | -5/Warlord | Spotted GY-W5J(K) 19429 | -5/Warlord | Core integrity fell below 50% 19473 | -5/Warlord | Spotted Striker 19481 | -5/Warlord | System corruption reached 10% 19515 | -5/Warlord | Spotted Striker 19518 | -5/Warlord | Core integrity fell below 20% 19526 | -5/Warlord | Destroyed by 3F-SAF(Y) with Heavy Autocannon Last Messages --------------- 19505_ The unstable cave ceiling collapses. 19505_ Dropped Vortex Lance. 19505_ G-50 Soldier knocked back. 19506_ The unstable cave ceiling collapses. 19511_ Acquired 71 matter. 19512_ >2P:R9X 19521_ G-50 Soldier suffers critical hit (Burn). 19521_ G-50 Soldier destroyed. 19522_ I-47 Archangel destroyed. 19526_ The unstable cave ceiling collapses. Map ----- +----------------------------------------------------+ | ???#????????????????????????????????????????????? | | ??#???#?????????????????????????????#??????????#? | | #?? ??????????##?????##????? ??##???? ? ? ????? | | ? ??? ?? ?#??###???#? ??? ??#???# ? ????#??? | | ??? ??+???? ?####???#??#? ? ??#### ??????#???? | | ?? ?#? ?? ?#####?#?###??# ##?#??#? ??? ??##? | | ?? # ? ###?#?##?##?#?? ??###?#?? ? ##???? | | #?# #??#?#??###?#?#?##????## ?#?##### ??#???### | | #?# ######?####?##??#???##? ?#### ????#?#??? | | ?## #?#####?#?#?#?####???#?? ? ?? ?"?## | | #?# #####?###?###?###?????###? ### #?# ?* ### | | ?## #?###?#""#?####??####????# ##?# = ## | | ?## #####?#""##?#?#?####?#???#?# ##?? ?# | | ### #?###?#""#####?###??##?#?#?# !#?? ### | | ### ###???#""######?###########?# ]##? ### | | #?# #######""# # ###### ## ##### ## "#? | | ### #######"" ## ## # #### # ?? ## | | %* # "" ## ;# #### ##?# ### "## | | " =!= ## # ##?# = ""## | | %* % " !!!= ## # ### " #? | | ! !] *%!% # # ### " ## | | % !!! Y !==*= % g ## #??# | | ]]!]/ %M l=! KK g%g #### ###? | | % %*!!! g %%% # #### ###? | | "]! [!! % # # # ## #### | | ""% "= @ # # ### ### | | % # *"" # ######## # # ## # ##? | | ### ### ###""#### #######?#### # #?# | | ## #### ##"" ## #?###?? # # #?# | | ### ######"" ## ##?#?#### # #### | | ### #####?#"" ################# #### | | ### ###?###""#########?######? ## ##?#? | | ### #######""##############??# ##### ##??# | | ### ##################??##?### #####?# #?##? | | ############?####?##?###?# ??#?#?## ###?? | | ###############?#?######## ###??### ##?# | | #######?###?#####?#?##### #??### % #?#? | | #####################?#####?#? ??#### ###? | | ################?####??#???###? ## ?### ##?# | | ############?####?###???#? ? ???# ?## ###? | | #####################?#?# ?? #?## ## ##?? | | ###########?######?#?##???????? #?#????## ##### | | ?###############???????## ???????#?????? #??#? | | # ##########?#?#????????????? ?##?##? ###?#? | | #######??##?#?????????## ? ????#??#####????? | | ##?#########??????????????????#??????#?????? | | # #############??????????? ?#?##??##???###???# | | #? ##########?##???????????#???#??#??#?#???#??#? | | ## #########?#????????????#????#?????#???#?????# | | ## #####?#######????????????? ?????????#??#?#??? | +----------------------------------------------------+ Best States ------------- Heat Dissipation 97 Coolant Potential 120 Energy Generation 55 Energy Capacity 700 Matter Stores 300 Matter Capacity 300 Sight Range 16 Robot Scan Range 16 Terrain Scan Range 20 Terrain Scan Density 210 Jamming Range 14 Armor Coverage 1250 Phase Shifting 15 Evasion (%) 55 Recoil Reduction 6 Offensive Hacking 10 Trap Extractor Capacity 6 Item Schematics ----------------- None Robot Schematics ------------------ None Fabricated ------------ Nothing Repaired ---------- Lgt. Armor Plating | 2% | -10/Materials Hvy. Armor Plating | 13% | -9/Materials Hvy. Armor Plating | 37% | -8/Storage Studied --------- Aluminum Leg | -9/Materials | Hacked Hvy. Phase Cannon | -5/Factory | Hacked Alien Tech Used ----------------- Core Expander Achievements -------------- None Challenges ------------ None Game ------ Seed InterdictionConcussiveAxe Manual? 0 Play Time 02:11:18 Cumulative 539.4 hours Start 2026.08.23 @ 14:06:22 End 2026.08.23 @ 18:04:10 Sessions 1 Manual Loads 0 Difficulty Rogue Special Mode None Game No. 302 Rogue 302 Adventurer 0 Explorer 0 Win Type - Total 27 Types 14/1/4/2/1/0/1/2/1/1 Lore% 94 Gallery% 84 Achievement% 77 Wizard Run 0 Options --------- Layout 1 ASCII 0 Keyboard 0 Movement Mouse Keybinds 0 Fullscreen 2 Font 32/SmallcapsGlow Map View 50x35 Zoom Use 0% Tactical HUD 1 Map Filters NONE Filters NONE Steam 1 RUN: 2f2093ff-5ca5-4ba9-8554-dfd2c46a86e9